fUSD/lending_fUSD_20240109
["ID","MTS","AMOUNT","RATE_DAILY","PERIOD"]
[310911432,1704814341377,-835.4,0.00041589,30]
[310911433,1704814341387,-500.0,0.00041589,30]
[310911434,1704814341397,-500.0,0.00041589,30]
[310911435,1704814341407,-500.0,0.00041589,30]
[310911436,1704814341417,-500.0,0.00041589,30]
[310911437,1704814341428,-2298.01,0.00041589,30]
[310911438,1704814341438,-870.0,0.00041589,30]
[310911439,1704814341447,-539.47,0.00041589,30]
[310911440,1704814341457,-1150.5,0.00041589,30]
[310911441,1704814341467,-1310.11,0.00041589,30]
[310911442,1704814341477,-500.0,0.00041589,30]
[310911443,1704814341487,-500.0,0.00041589,30]
[310911444,1704814341497,-1400.49,0.00041589,30]
[310911445,1704814341507,-1360.64,0.00041589,30]
[310911446,1704814341517,-500.0,0.00041589,30]
[310911447,1704814341527,-923.19,0.00041589,30]
[310911448,1704814341538,-1204.31,0.00041589,30]
[310911449,1704814341548,-771.54,0.00041589,30]
[310911450,1704814341558,-2584.55,0.00041589,30]
[310911451,1704814341570,-1160.23,0.00041589,30]
[310911452,1704814341580,-500.0,0.00041589,30]
[310911453,1704814341590,-500.0,0.00041589,30]
[310911454,1704814341600,-1315.98,0.00041589,30]
[310911455,1704814341610,-500.0,0.00041589,10]
[310911456,1704814341620,-1972.08,0.00041589,30]
[310911457,1704814341630,-1668.26,0.00041589,30]
[310911458,1704814341642,-1439.0,0.00041589,30]
[310911459,1704814341652,-1429.35,0.00041589,30]
[310911460,1704814341662,-2461.03,0.00041589,30]
[310911461,1704814341673,-946.78,0.00041589,30]
[310911462,1704814341683,-581.25966988,0.00041589,30]
[310911463,1704814341694,-500.0,0.00041589,4]
[310911464,1704814341704,-713.51,0.00041589,30]
[310911465,1704814341714,-1659.56,0.00041589,30]
[310911466,1704814341726,-500.0,0.00041589,30]
[310911467,1704814341737,-500.0,0.00041589,30]
[310911468,1704814341748,-500.0,0.00041589,30]
[310911469,1704814341758,-500.0,0.00041589,30]
[310911470,1704814341768,-500.0,0.00041589,30]
[310911471,1704814341778,-500.0,0.00041589,30]
[310911472,1704814341790,-803.78,0.00041589,30]
[310911473,1704814341800,-500.0,0.00041589,30]
[310911474,1704814341815,-500.0,0.00041589,30]
[310911475,1704814341826,-614.42,0.00041589,30]
[310911476,1704814341836,-500.0,0.00041589,30]
[310911477,1704814341847,-1000.0,0.00041589,7]
[310911478,1704814341857,-500.0,0.00041589,30]
[310911479,1704814341867,-800.95,0.00041589,30]
[310911480,1704814341876,-1758.64,0.00041589,30]
[310911481,1704814341886,-500.0,0.00041589,30]
[310911482,1704814341895,-500.0,0.00041589,30]
[310911483,1704814341905,-1778.42,0.00041589,30]
[310911484,1704814341914,-848.11,0.00041589,30]
[310911485,1704814341925,-3407.77,0.00041589,30]
[310911486,1704814341935,-2138.28,0.00041589,30]
[310911487,1704814341945,-500.0,0.00041589,30]
[310911488,1704814341955,-500.0,0.00041589,30]
[310911489,1704814341966,-500.0,0.00041589,30]
[310911490,1704814341976,-886.41,0.00041589,30]
[310911491,1704814341985,-506.60772706,0.00041589,2]
[310911492,1704814341996,-500.0,0.00041589,30]
[310911493,1704814342006,-500.0,0.00041589,30]
[310911494,1704814342017,-1677.31,0.00041589,30]
[310911495,1704814342026,-500.0,0.00041589,30]
[310911496,1704814342036,-500.0,0.00041589,30]
[310911497,1704814342046,-1138.73,0.00041589,30]
[310911498,1704814342056,-3178.9,0.00041589,30]
[310911499,1704814342066,-2732.04,0.00041589,30]
[310911500,1704814342076,-500.0,0.00041589,30]
[310911501,1704814342086,-770.65,0.00041589,30]
[310911502,1704814342095,-500.0,0.00041589,30]
[310911503,1704814342105,-2194.76,0.00041589,30]
[310911504,1704814342114,-500.0,0.00041589,30]
[310911505,1704814342123,-1008.53,0.00041589,30]
[310911506,1704814342133,-1048.75,0.00041589,30]
[310911507,1704814342143,-500.0,0.00041589,30]
[310911508,1704814342153,-1329.34,0.00041589,30]
[310911509,1704814342162,-2754.0,0.00041589,30]
[310911510,1704814342171,-506.43440173,0.00041589,30]
[310911511,1704814342181,-500.0,0.00041589,30]
[310911512,1704814342190,-1507.83,0.00041589,30]
[310911513,1704814342200,-500.0,0.00041589,30]
[310911514,1704814342210,-680.5,0.00041589,30]
[310911515,1704814342220,-500.0,0.00041589,30]
[310911516,1704814342230,-634.38,0.00041589,30]
[310911517,1704814342239,-2700.24,0.00041589,30]
[310911518,1704814342248,-500.0,0.00041589,30]
[310911519,1704814342258,-1356.37,0.00041589,30]
[310911520,1704814342268,-500.0,0.00041589,30]
[310911521,1704814342277,-500.0,0.00041589,30]
[310911522,1704814342403,-500.0,0.00041589,30]
[310911523,1704814342412,-651.64,0.00041589,30]
[310911524,1704814342423,-500.0,0.00041589,30]
[310911525,1704814342433,-500.0,0.00041589,30]
[310911526,1704814342443,-500.0,0.00041589,30]
[310911527,1704814342453,-952.35,0.00041589,30]
[310911528,1704814342463,-500.0,0.00041589,30]
[310911529,1704814342474,-500.0,0.00041589,30]
[310911530,1704814342485,-1810.23,0.00041589,30]
[310911531,1704814342496,-500.0,0.00041589,30]
[310911532,1704814342506,-587.58,0.00041589,30]
[310911533,1704814342516,-625.64,0.00041589,30]
[310911534,1704814342527,-676.46,0.00041589,30]
[310911535,1704814342537,-500.0,0.00041589,30]
[310911536,1704814342547,-500.0,0.00041589,30]
[310911537,1704814342559,-1006.7,0.00041589,30]
[310911538,1704814342570,-500.0,0.00041589,30]
[310911539,1704814342581,-457.0939125,0.00041589,30]
[310911540,1704814342593,-1037.96,0.00041589,30]
[310911541,1704814342604,-1236.35,0.00041589,30]
[310911542,1704814342615,-1919.15,0.00041589,30]
[310911543,1704814342625,-500.0,0.00041589,30]
[310911544,1704814342635,-500.0,0.00041589,30]
[310911545,1704814342646,-500.0,0.00041589,30]
[310911546,1704814342664,-1578.69,0.00041589,30]
[310911547,1704814342677,-500.0,0.00041589,30]
[310911548,1704814342688,-1865.73,0.00041589,30]
[310911549,1704814342698,-500.0,0.00041589,30]
[310911550,1704814342710,-1362.93,0.00041589,30]
[310911551,1704814342721,-2456.66,0.00041589,30]
[310911552,1704814342731,-1537.84,0.00041589,30]
[310911553,1704814342741,-500.0,0.00041589,30]
[310911554,1704814342752,-500.0,0.00041589,30]
[310911555,1704814342762,-589.31,0.00041589,30]
[310911556,1704814342773,-500.0,0.00041589,30]
[310911557,1704814342784,-1710.93,0.00041589,30]
[310911558,1704814342794,-788.83,0.00041589,30]
[310911559,1704814342807,-500.0,0.00041589,30]
[310911560,1704814342824,-2756.46,0.00041589,30]
[310911561,1704814342836,-2705.23,0.00041589,30]
[310911562,1704814342850,-2588.77,0.00041589,30]
[310911563,1704814342861,-150.34762905,0.00041589,30]
[310911564,1704814342871,-946.47,0.00041589,30]
[310911565,1704814342882,-500.0,0.00041589,30]
[310911566,1704814342894,-500.0,0.00041589,30]
[310911567,1704814342904,-500.0,0.00041589,30]
[310911568,1704814342914,-500.0,0.00041589,30]
[310911569,1704814342926,-500.0,0.00041589,30]
[310911570,1704814342937,-825.0,0.00041589,30]
[310911571,1704814342947,-500.0,0.00041589,30]
[310911572,1704814342958,-500.0,0.00041589,30]
[310911573,1704814342968,-821.89,0.00041589,30]
[310911574,1704814342979,-1714.7,0.00041589,30]
[310911575,1704814342990,-987.47,0.00041589,30]
[310911576,1704814343001,-12516.53,0.00041589,30]
[310911577,1704814343013,-2523.55,0.00041589,30]
[310911578,1704814343024,-500.0,0.00041589,30]
[310911579,1704814343034,-1027.68,0.00041589,30]
[310911580,1704814343045,-1217.97,0.00041589,30]
[310911581,1704814343056,-1474.62,0.00041589,30]
[310911582,1704814343067,-500.0,0.00041589,30]
[310911583,1704814343079,-500.0,0.00041589,30]
[310911584,1704814343090,-1454.57,0.00041589,30]
[310911585,1704814343101,-500.0,0.00041589,5]
[310911586,1704814343113,-1048.97,0.00041589,30]
[310911587,1704814343123,-2127.96,0.00041589,30]
[310911588,1704814343134,-500.0,0.00041589,30]
[310911589,1704814343146,-1299.93,0.00041589,30]
[310911590,1704814343159,-500.0,0.00041589,30]
[310911591,1704814343169,-2596.84,0.00041589,30]
[310911592,1704814343180,-500.0,0.00041589,30]
[310911593,1704814343190,-1950.17,0.00041589,30]
[310911594,1704814343200,-725.04,0.00041589,30]
[310911595,1704814343211,-2106.17,0.00041589,30]
[310911596,1704814343220,-500.0,0.00041589,30]
[310911597,1704814343230,-794.41,0.00041589,30]
[310911598,1704814343240,-3285.45,0.00041589,30]
[310911599,1704814343251,-1542.09,0.00041589,7]
[310911600,1704814343261,-500.0,0.00041589,30]
[310911601,1704814343271,-2655.79,0.00041589,30]
[310911602,1704814343282,-650.25,0.00041589,30]
[310911603,1704814343292,-7119.89,0.00041589,30]
[310911604,1704814343302,-1087.65,0.00041589,30]
[310911605,1704814343312,-500.0,0.00041589,30]
[310911606,1704814343323,-500.0,0.00041589,30]
[310911607,1704814343333,-977.92,0.00041589,30]
[310911608,1704814343344,-913.65,0.00041589,30]
[310911609,1704814343355,-2362.44,0.00041589,30]
[310911610,1704814343366,-576.88,0.00041589,30]
[310911611,1704814343376,-1112.82,0.00041589,30]
[310911612,1704814343386,-1726.68,0.00041589,30]
[310911613,1704814343396,-3996.86,0.00041589,30]
[310911614,1704814343407,-2396.9,0.00041589,30]
[310911615,1704814343417,-2486.71,0.00041589,30]
[310911616,1704814343426,-500.0,0.00041589,30]
[310911617,1704814343437,-500.0,0.00041589,30]
[310911618,1704814343447,-3045.65,0.00041589,30]
[310911619,1704814343458,-500.0,0.00041589,30]
[310911620,1704814343468,-502.99,0.00041589,30]
[310911621,1704814343477,-4277.01,0.00041589,30]
[310911622,1704814343488,-2246.6,0.00041589,30]
[310911623,1704814343499,-1448.82,0.00041589,2]
[310911624,1704814343510,-1043.39,0.00041589,30]
[310911625,1704814343521,-502.73,0.00041589,30]
[310911626,1704814343531,-534.65,0.00041589,30]
[310911627,1704814343541,-891.36,0.00041589,30]
[310911628,1704814343552,-500.0,0.00041589,30]
[310911629,1704814343563,-1353.62,0.00041589,30]
[310911630,1704814343575,-2632.89,0.00041589,30]
[310911631,1704814343585,-1838.21,0.00041589,30]
[310911632,1704814343598,-1576.53,0.00041589,30]
[310911633,1704814343609,-1105.49,0.00041589,30]
[310911634,1704814343621,-862.54,0.00041589,30]
[310911635,1704814343633,-1537.91,0.00041589,30]
[310911636,1704814343644,-500.0,0.00041589,30]
[310911637,1704814343655,-678.18,0.00041589,30]
[310911638,1704814343665,-500.0,0.00041589,30]
[310911639,1704814343675,-500.0,0.00041589,30]
[310911640,1704814343686,-1574.3,0.00041589,30]
[310911641,1704814343696,-4265.52,0.00041589,30]
[310911642,1704814343707,-3580.78,0.00041589,30]
[310911643,1704814343719,-726.93,0.00041589,30]
[310911644,1704814343730,-10916.38,0.00041589,30]
[310911645,1704814343740,-500.0,0.00041589,30]
[310911646,1704814343751,-1982.37,0.00041589,30]
[310911647,1704814343760,-500.0,0.00041589,30]
[310911648,1704814343769,-1469.95,0.00041589,30]
[310911649,1704814343780,-2986.22,0.00041589,30]
[310911650,1704814343789,-1699.32,0.00041589,30]
[310911651,1704814343799,-3068.15,0.00041589,30]
[310911652,1704814343810,-686.48,0.00041589,30]
[310911653,1704814343822,-1390.68,0.00041589,30]
[310911654,1704814343832,-10247.09,0.00041589,30]
[310911655,1704814343843,-1223.53,0.00041589,30]
[310911656,1704814343853,-1685.22,0.00041589,30]
[310911657,1704814343862,-500.0,0.00041589,30]
[310911658,1704814343872,-500.0,0.00041589,30]
[310911659,1704814343881,-500.0,0.00041589,30]
[310911660,1704814343891,-500.0,0.00041589,30]
[310911661,1704814343900,-500.0,0.00041589,30]
[310911662,1704814343910,-1149.96,0.00041589,30]
[310911663,1704814343920,-6253.79,0.00041589,30]
[310911664,1704814343930,-500.0,0.00041589,30]
[310911665,1704814343939,-989.82,0.00041589,30]
[310911666,1704814343949,-500.0,0.00041589,30]
[310911667,1704814343958,-2365.66,0.00041589,30]
[310911668,1704814343968,-1963.83,0.00041589,30]
[310911669,1704814343978,-701.0,0.00041589,30]
[310911670,1704814343987,-705.46,0.00041589,30]
[310911671,1704814343997,-7334.72,0.00041589,30]
[310911672,1704814344007,-500.0,0.00041589,30]
[310911673,1704814344016,-2159.55,0.00041589,30]
[310911674,1704814344026,-7619.16,0.00041589,30]
[310911675,1704814344036,-7759.7,0.00041589,30]
[310911676,1704814344046,-514.59806889,0.00041589,30]
[310911677,1704814344056,-1725.58,0.00041589,30]
[310911678,1704814344066,-1264.61,0.00041589,30]
[310911679,1704814344076,-2266.7,0.00041589,30]
[310911680,1704814344086,-500.0,0.00041589,30]
[310911681,1704814344096,-914.32,0.00041589,30]
[310911682,1704814344105,-500.0,0.00041589,30]
[310911683,1704814344115,-689.51,0.00041589,30]
[310911684,1704814344124,-500.0,0.00041589,30]
[310911685,1704814344134,-6777.19,0.00041589,30]
[310911686,1704814344143,-1573.82,0.00041589,30]
[310911687,1704814344153,-500.0,0.00041589,30]
[310911688,1704814344162,-4036.91,0.00041589,30]
[310911689,1704814344172,-3417.76,0.00041589,30]
[310911690,1704814344182,-2670.87,0.00041589,30]
[310911691,1704814344192,-649.74,0.00041589,30]
[310911692,1704814344202,-1768.69,0.00041589,30]
[310911693,1704814344212,-2656.66,0.00041589,30]
[310911694,1704814344221,-500.0,0.00041589,30]
[310911695,1704814344232,-3624.89,0.00041589,30]
[310911696,1704814344242,-500.0,0.00041589,30]
[310911697,1704814344251,-891.81,0.00041589,30]
[310911698,1704814344260,-1969.21,0.00041589,30]
[310911699,1704814344270,-4760.81,0.00041589,30]
[310911700,1704814344280,-1849.48,0.00041589,30]
[310911701,1704814344290,-2591.36,0.00041589,30]
[310911702,1704814344299,-1829.62,0.00041589,30]
[310911703,1704814344309,-507.02,0.00041589,30]
[310911704,1704814344318,-1545.72,0.00041589,30]
[310911705,1704814344328,-1282.15,0.00041589,30]
[310911706,1704814344338,-820.1,0.00041589,30]
[310911707,1704814344349,-3330.89,0.00041589,30]
[310911708,1704814344358,-7125.45,0.00041589,30]
[310911709,1704814344368,-1041.48,0.00041589,30]
[310911710,1704814344377,-500.0,0.00041589,30]
[310911711,1704814344387,-500.0,0.00041589,30]
[310911712,1704814344396,-4552.78,0.00041589,30]
[310911713,1704814344406,-25135.11,0.00041589,30]
[310911714,1704814344416,-18448.99,0.00041589,30]
[310911715,1704814344426,-3134.7,0.00041589,30]
[310911716,1704814344436,-2000.28,0.00041589,30]
[310911717,1704814344445,-500.0,0.00041589,30]
[310911718,1704814344455,-500.0,0.00041589,30]
[310911719,1704814344465,-575.3295845,0.00041589,30]
[310911720,1704814344474,-500.0,0.00041589,30]
[310911721,1704814344483,-745.36,0.00041589,30]
[310911722,1704814344493,-13835.28,0.00041589,30]
[310911723,1704814344503,-1655.6,0.00041589,30]
[310911724,1704814344513,-1353.98,0.00041589,30]
[310911725,1704814344522,-2446.36,0.00041589,30]
[310911726,1704814344532,-19704.83,0.00041589,30]
[310911727,1704814344541,-3526.58,0.00041589,30]
[310911728,1704814344552,-11755.41,0.00041589,30]
[310911729,1704814344561,-2085.11,0.00041589,30]
[310911730,1704814344571,-440.98025651,0.00041589,30]
[310911731,1704814344581,-975.77,0.00041589,30]
[310911732,1704814344591,-500.0,0.00041589,7]
[310911733,1704814344601,-5456.33,0.00041589,30]
[310911734,1704814344611,-703.77,0.00041589,30]
[310911735,1704814344621,-500.0,0.00041589,30]
[310911736,1704814344631,-578.03,0.00041589,30]
[310911737,1704814344641,-18929.09,0.00041589,30]
[310911738,1704814344650,-91700.44,0.00041589,30]
[310911739,1704814344660,-500.0,0.00041589,30]
[310911740,1704814344669,-500.0,0.00041589,30]
[310911741,1704814344679,-610.44,0.00041589,30]
[310911742,1704814344689,-4955.76,0.00041589,30]
[310911743,1704814344699,-11389.4,0.00041589,30]
[310911744,1704814344709,-685.04,0.00041589,30]
[310911745,1704814344718,-5644.78,0.00041589,30]
[310911746,1704814344728,-1643.59,0.00041589,30]
[310911747,1704814344737,-1534.89,0.00041589,30]
[310911748,1704814344746,-1919.34,0.00041589,30]
[310911749,1704814344756,-500.0,0.00041589,30]
[310911750,1704814344765,-1207.82,0.00041589,30]
[310911751,1704814344775,-3051.16,0.00041589,30]
[310911752,1704814344785,-2205.97,0.00041589,30]
[310911753,1704814344795,-500.0,0.00041589,30]
[310911754,1704814344805,-500.0,0.00041589,30]
[310911755,1704814344816,-500.0,0.00041589,30]
[310911756,1704814344826,-4326.12,0.00041589,30]
[310911757,1704814344835,-23372.75,0.00041589,30]
[310911758,1704814344845,-4650.3,0.00041589,30]
[310911759,1704814344854,-3602.98,0.00041589,30]
[310911760,1704814344864,-500.0,0.00041589,30]
[310911761,1704814344873,-500.0,0.00041589,30]
[310911762,1704814344883,-1706.69,0.00041589,30]
[310911763,1704814344892,-948.23,0.00041589,30]
[310911764,1704814344901,-1484.9,0.00041589,30]
[310911765,1704814344911,-625.91,0.00041589,30]
[310911766,1704814344921,-4750.61,0.00041589,30]
[310911767,1704814344930,-677.56,0.00041589,30]
[310911768,1704814344940,-570.53,0.00041589,30]
[310911769,1704814344949,-753.01,0.00041589,30]
[310911770,1704814344958,-1014.72,0.00041589,30]
[310911771,1704814344968,-1075.83,0.00041589,30]
[310911772,1704814344978,-10401.23,0.00041589,30]
[310911773,1704814344987,-500.0,0.00041589,30]
[310911774,1704814344996,-1988.56,0.00041589,30]
[310911775,1704814345006,-2247.55,0.00041589,30]
[310911776,1704814345015,-1760.09,0.00041589,30]
[310911777,1704814345025,-1917.59,0.00041589,30]
[310911778,1704814345035,-8509.95,0.00041589,30]
[310911779,1704814345044,-6630.63,0.00041589,30]
[310911780,1704814345054,-6677.97,0.00041589,30]
[310911781,1704814345063,-912.61,0.00041589,30]
[310911782,1704814345073,-500.0,0.00041589,30]
[310911783,1704814345082,-7738.46,0.00041589,30]
[310911784,1704814345091,-500.0,0.00041589,30]
[310911785,1704814345100,-500.0,0.00041589,30]
[310911786,1704814345110,-14437.73,0.00041589,30]
[310911787,1704814345119,-839.67,0.00041589,30]
[310911788,1704814345129,-1402.57,0.00041589,30]
[310911789,1704814345138,-814.2,0.00041589,30]
[310911790,1704814345147,-2196.22,0.00041589,30]
[310911791,1704814345157,-500.0,0.00041589,30]
[310911792,1704814345166,-36009.51,0.00041589,30]
[310911793,1704814345176,-2863.88,0.00041589,30]
[310911794,1704814345186,-12556.6,0.00041589,30]
[310911795,1704814345196,-3304.26,0.00041589,30]
[310911796,1704814345205,-2592.03,0.00041589,30]
[310911797,1704814345215,-2705.09,0.00041589,30]
[310911798,1704814345225,-500.0,0.00041589,30]
[310911799,1704814345235,-500.0,0.00041589,30]
[310911800,1704814345244,-500.0,0.00041589,30]
[310911801,1704814345254,-2751.1,0.00041589,30]
[310911802,1704814345264,-2400.96,0.00041589,30]
[310911803,1704814345273,-4406.91,0.00041589,30]
[310911804,1704814345284,-1297.88,0.00041589,30]
[310911805,1704814345293,-6577.65,0.00041589,30]
[310911806,1704814345303,-571.22,0.00041589,30]
[310911807,1704814345313,-3403.92,0.00041589,30]
[310911808,1704814345324,-500.0,0.00041589,30]
[310911809,1704814345336,-3033.25,0.00041589,30]
[310911810,1704814345348,-952.63,0.00041589,30]
[310911811,1704814345359,-1721.02,0.00041589,30]
[310911812,1704814345370,-836.3,0.00041589,7]
[310911813,1704814345379,-7028.61,0.00041589,30]
[310911814,1704814345389,-500.0,0.00041589,30]
[310911815,1704814345400,-5593.4,0.00041589,30]
[310911816,1704814345411,-2579.3,0.00041589,30]
[310911817,1704814345420,-500.0,0.00041589,30]
[310911818,1704814345433,-831.97,0.00041589,30]
[310911819,1704814345443,-500.0,0.00041589,30]
[310911820,1704814345453,-30439.38,0.00041589,30]
[310911821,1704814345463,-500.0,0.00041589,30]
[310911822,1704814345472,-3381.6,0.00041589,30]
[310911823,1704814345481,-2158.92,0.00041589,30]
[310911824,1704814345491,-500.0,0.00041589,30]
[310911825,1704814345501,-3472.05,0.00041589,30]
[310911826,1704814345511,-3977.49,0.00041589,30]
[310911827,1704814345521,-3410.32,0.00041589,30]
[310911828,1704814345531,-307.56385553,0.00041589,30]
[310911829,1704814345541,-500.0,0.00041589,30]
[310911830,1704814345550,-3128.49,0.00041589,30]
[310911831,1704814345560,-10635.21,0.00041589,30]
[310911832,1704814345569,-663.76,0.00041589,30]
[310911833,1704814345579,-24039.48,0.00041589,30]
[310911834,1704814345589,-500.0,0.00041589,30]
[310911835,1704814345599,-500.0,0.00041589,30]
[310911836,1704814345609,-2042.98,0.00041589,30]
[310911837,1704814345619,-3985.89,0.00041589,30]
[310911838,1704814345628,-963.6,0.00041589,30]
[310911839,1704814345638,-666.14,0.00041589,30]
[310911840,1704814345648,-556.97,0.00041589,30]
[310911841,1704814345657,-8775.01,0.00041589,30]
[310911842,1704814345667,-1309.81,0.00041589,30]
[310911843,1704814345676,-500.0,0.00041589,30]
[310911844,1704814345685,-2400.49,0.00041589,30]
[310911845,1704814345695,-566.11,0.00041589,30]
[310911846,1704814345704,-12849.89,0.00041589,30]
[310911847,1704814345714,-4562.41,0.00041589,30]
[310911848,1704814345723,-2978.02,0.00041589,30]
[310911849,1704814345733,-4825.39,0.00041589,30]
[310911850,1704814345742,-500.0,0.00041589,30]
[310911851,1704814345752,-2107.23,0.00041589,30]
[310911852,1704814345761,-1467.66,0.00041589,30]
[310911853,1704814345770,-500.0,0.00041589,30]
[310911854,1704814345779,-507.13822477,0.00041589,30]
[310911855,1704814345789,-1188.47,0.00041589,30]
[310911856,1704814345799,-11369.64,0.00041589,30]
[310911857,1704814345809,-500.0,0.00041589,7]
[310911858,1704814345823,-2592.28,0.00041589,30]
[310911859,1704814345833,-566.95,0.00041589,30]
[310911860,1704814345842,-520.31,0.00041589,30]
[310911861,1704814345852,-13217.82,0.00041589,30]
[310911862,1704814345861,-500.0,0.00041589,30]
[310911863,1704814345871,-866.47,0.00041589,30]
[310911864,1704814345881,-500.0,0.00041589,30]
[310911865,1704814345890,-1308.82,0.00041589,30]
[310911866,1704814345900,-3181.95,0.00041589,30]
[310911867,1704814345910,-1243.26,0.00041589,30]
[310911868,1704814345920,-3734.08,0.00041589,30]
[310911869,1704814345930,-500.0,0.00041589,30]
[310911870,1704814345939,-1766.64,0.00041589,30]
[310911871,1704814345949,-3615.8,0.00041589,30]
[310911872,1704814345959,-500.0,0.00041589,30]
[310911873,1704814345968,-500.0,0.00041589,30]
[310911874,1704814345978,-799.0,0.00041589,30]
[310911875,1704814345987,-500.0,0.00041589,30]
[310911876,1704814345996,-500.0,0.00041589,30]
[310911877,1704814346008,-53505.47,0.00041589,30]
[310911878,1704814346017,-1413.08,0.00041589,30]
[310911879,1704814346026,-1155.76,0.00041589,30]
[310911880,1704814346036,-11287.22,0.00041589,30]
[310911881,1704814346045,-3747.83,0.00041589,30]
[310911882,1704814346054,-1079.77,0.00041589,30]
[310911883,1704814346063,-1909.74,0.00041589,30]
[310911884,1704814346072,-3376.04,0.00041589,30]
[310911885,1704814346082,-500.0,0.00041589,30]
[310911886,1704814346092,-500.0,0.00041589,30]
[310911887,1704814346102,-441.30900411,0.00041589,30]
[310911888,1704814346111,-1333.09,0.00041589,30]
[310911889,1704814346120,-500.0,0.00041589,30]
[310911890,1704814346129,-553.36220347,0.00041589,30]
[310911891,1704814346139,-9749.45,0.00041589,30]
[310911892,1704814346150,-539.77,0.00041589,30]
[310911893,1704814346160,-2218.8,0.00041589,30]
[310911894,1704814346170,-1480.74,0.00041589,30]
[310911895,1704814346180,-7804.99,0.00041589,30]
[310911896,1704814346190,-1670.61,0.00041589,30]
[310911897,1704814346200,-1352.73,0.00041589,30]
[310911898,1704814346210,-4741.82,0.00041589,30]
[310911899,1704814346219,-1839.15,0.00041589,30]
[310911900,1704814346230,-575.96177251,0.00041589,30]
[310911901,1704814346241,-866.78,0.00041589,30]
[310911902,1704814346250,-744.76,0.00041589,30]
[310911903,1704814346261,-1274.54,0.00041589,30]
[310911904,1704814346271,-1070.69,0.00041589,30]
[310911905,1704814346282,-2037.9,0.00041589,30]
[310911906,1704814346293,-500.0,0.00041589,30]
[310911907,1704814346303,-6743.41,0.00041589,30]
[310911908,1704814346313,-1978.49,0.00041589,30]
[310911909,1704814346323,-6850.2,0.00041589,30]
[310911910,1704814346334,-621.39,0.00041589,30]
[310911911,1704814346344,-500.0,0.00041589,30]
[310911912,1704814346354,-3055.23,0.00041589,30]
[310911913,1704814346364,-2655.54,0.00041589,30]
[310911914,1704814346374,-764.5,0.00041589,30]
[310911915,1704814346384,-8868.04,0.00041589,30]
[310911916,1704814346394,-770.69,0.00041589,30]
[310911917,1704814346404,-4116.15,0.00041589,30]
[310911918,1704814346415,-6036.32,0.00041589,30]
[310911919,1704814346425,-3806.3,0.00041589,30]
[310911920,1704814346435,-5775.13,0.00041589,30]
[310911921,1704814346446,-1289.28,0.00041589,30]
[310911922,1704814346456,-500.0,0.00041589,30]
[310911923,1704814346465,-845.03,0.00041589,30]
[310911924,1704814346475,-6309.52,0.00041589,30]
[310911925,1704814346485,-1090.32,0.00041589,30]
[310911926,1704814346495,-5575.14,0.00041589,30]
[310911927,1704814346505,-3727.78,0.00041589,30]
[310911928,1704814346516,-901.26,0.00041589,30]
[310911929,1704814346526,-10643.6,0.00041589,30]
[310911930,1704814346536,-529.51,0.00041589,30]
[310911931,1704814346546,-500.0,0.00041589,30]